Cogmind - Beta 17 @@@ ROGUE MODE // 2026.07.30 @ 20:26:51 // Winter2022/Polymind Player: TinyBoulder Result: Destroyed by Y-45 Defender with Heavy Assault Rifle Performance ------------- Evolutions (2) 1000 Regions Visited (4) 800 Robots Destroyed (4) 20 Value Destroyed (154) 154 Prototype IDs (0) 0 Alien Tech Used (0) 0 Bonus (2350) 2350 TOTAL SCORE: 4104 Bonus ------- Polymind Skill 1180 Pacifist 470 Entered Garrisons 200 Used RIF Installer 500 Cogmind --------- Core Integrity 0/550 Matter 0/0 Energy 110/110 System Corruption 2% Temperature Cool (34) Movement Walking (120) Location -8/Garrison Parts ------- > --- POWER (1) -------- Light Nuclear Core > --- PROPULSION (2) --- Aluminum Leg Aluminum Leg > --- UTILITY (1) ------ Improved Heat Sink > --- WEAPON (1) ------- Particle Gun > --- INVENTORY (1) ---- (None) Peak State ------------ > --- POWER ------------ Light Angular Momentum Engine > --- PROPULSION ------- Carbon-fiber Leg Carbon-fiber Leg > --- UTILITY ---------- Advanced Heat Sink > --- WEAPON ----------- Heavy Laser > --- INVENTORY -------- (None) [Rating: 20] Favorites ----------- Power Light Ion Engine Engine Light Ion Engine Power Core Light Nuclear Core Propulsion Compact Wheel Leg Carbon-fiber Leg Wheel Compact Wheel Flight Unit Flight Unit Utility Small Storage Unit Device Tractor Beam Storage Small Storage Unit Weapon Heavy Laser Energy Gun Heavy Laser Ballistic Gun Light Assault Rifle Build | -11 -10 -9 -8 -8 ------- Run | Yrd Mat Mat Mat Gar Slots Evolved . | . . . . . Power . | . . . . . Propulsion . | . . . . . Utility . | . . . . . Weapon . | . . . . . Parts Attached . | . . . . . Power . | . . . . . Engine . | . . . . . Core . | . . . . . Reactor . | . . . . . Propulsion . | . . . . . Treads . | . . . . . Leg . | . . . . . Wheel . | . . . . . Hover . | . . . . . Flight . | . . . . . Utility . | . . . . . Device . | . . . . . Storage . | . . . . . Processor . | . . . . . Hackware . | . . . . . Protection . | . . . . . Artifact . | . . . . . Weapon . | . . . . . Energy Gun . | . . . . . Energy Cannon . | . . . . . Ballistic Gun . | . . . . . Ballistic Cannon . | . . . . . Launcher . | . . . . . Special Weapon . | . . . . . Impact Weapon . | . . . . . Slashing Weapon . | . . . . . Piercing Weapon . | . . . . . Special Melee Weapon . | . . . . . Unidentified Prototypes . | . . . . . Parts Lost 9 | . . . . 9 Power 2 | . . . . 2 Propulsion 4 | . . . . 4 Utility 1 | . . . . 1 Weapon 2 | . . . . 2 Highest Loss Streak 8 | . . . . 8 To Critical Strikes . | . . . . . Average Backups 2 | 2 4 4 4 1 Power . | . 1 1 1 . Propulsion 1 | 1 2 2 2 . Utility . | . . . . . Weapon . | . 1 1 1 . Tool/Special . | . . . . . Unused Backups 4 | . . . . 4 Power 1 | . . . . 1 Propulsion 2 | . . . . 2 Utility . | . . . . . Weapon 1 | . . . . 1 Tool/Special . | . . . . . Average Slot Usage (%) 88 | . 100 100 100 76 Engine 16 | . 20 20 20 13 Leg 3 | . . . . 6 Wheel 30 | . 40 40 40 20 Device 18 | . 20 20 20 15 Storage 15 | . 20 20 20 10 Energy Gun 2 | . . . . 4 Ballistic Gun 2 | . . . . 4 Peak Build Rating 20 | 5 5 5 5 20 Average Rating 5 | 4 5 5 5 6 On Entrance 4 | . 5 5 5 5 Avg Prop Armor Cover (%) . | . . . . . Naked Turns 9 | . . . . 9 Heaviest Build 14 | 9 9 9 9 14 Greatest Support 32 | 32 32 32 32 32 Greatest Overweight (x) 1 | . . . . 1 Average Overweight (x) . | . . . . . Largest Inventory Capacity 4 | 4 4 4 4 4 Average Capacity 3 | 3 4 4 4 2 Most Carried 4 | 4 4 4 4 4 Average Carried 2 | 2 4 4 4 1 Final Capacity 4 | 4 4 4 4 1 Final Carried 4 | 4 4 4 4 . Class Distribution -------------------- 73% | Recycler 16% | Grunt 8% | Swarmer Dominant Class ---------------- Recycler | -10/Materials Recycler | -9/Materials Recycler | -8/Materials Recycler | -8/Garrison Resources | -11 -10 -9 -8 -8 ----------- Run | Yrd Mat Mat Mat Gar Matter Collected 50 | . . . . 50 Remotely . | . . . . . Salvage Created 147 | . . . . 147 Parts 6 | . . . . 6 Haulers Intercepted . | . . . . . Recyclers Shooed . | . . . . . Parts Field Recycled . | . . . . . Retrieved Matter . | . . . . . Parts Self-Destructed . | . . . . . Prevented . | . . . . . Parts Restored . | . . . . . Kills | -11 -10 -9 -8 -8 ------- Run | Yrd Mat Mat Mat Gar Combat Hostiles Destroyed 4 | . . . . 4 Melee 1 | . . . . 1 Guns 2 | . . . . 2 Classes Destroyed 2 | . . . . 2 Swarmer 1 | . . . . 1 Grunt 3 | . . . . 3 Best Kill Streak 1 | . . . . 1 Combat Bots Only 1 | . . . . 1 Max Kills in Single Turn 1 | . . . . 1 Gunslinging . | . . . . . Exploded . | . . . . . Melee 1 | . . . . 1 Uniques/NPCs Destroyed . | . . . . . Combat | -11 -10 -9 -8 -8 -------- Run | Yrd Mat Mat Mat Gar Hostile Shots Fired 117 | . . . . 117 Missed 33 | . . . . 33 Hits 84 | . . . . 84 Projectile 84 | . . . . 84 Critical Strikes 1 | . . . . 1 Damage Taken 1210 | . . . . 1210 Core 550 | . . . . 550 Absorbed by Shields . | . . . . . Core Remaining (%) 100 | 100 100 100 . . Volleys Fired 50 | . . . . 50 Largest 1 | . . . . 1 Hottest 69 | . . . . 69 Shots Fired 50 | . . . . 50 Gun 50 | . . . . 50 Cannon . | . . . . . Launcher . | . . . . . Special . | . . . . . Kinetic 29 | . . . . 29 Thermal 21 | . . . . 21 Explosive . | . . . . . Electromagnetic . | . . . . . Robot Hit Streak 35 | . . . . 35 Robot Miss Streak 1 | . . . . 1 Penetration Max . | . . . . . Secondary Targets . | . . . . . Shots Hit Robots 47 | . . . . 47 Core Hits 16 | . . . . 16 Critical Kills . | . . . . . Critical Parts Destroyed . | . . . . . Critical Strikes 1 | . . . . 1 Burn 1 | . . . . 1 Melee Attacks . | . . . . . Impact . | . . . . . Slashing . | . . . . . Piercing . | . . . . . Sneak Attacks . | . . . . . Combat Hostiles . | . . . . . Follow-up Attacks . | . . . . . Damage Inflicted 635 | . . . . 635 Guns 572 | . . . . 572 Cannons . | . . . . . Explosions . | . . . . . Melee . | . . . . . Ramming 63 | . . . . 63 Kinetic 238 | . . . . 238 Thermal 334 | . . . . 334 Explosive . | . . . . . Electromagnetic . | . . . . . Impact . | . . . . . Slashing . | . . . . . Piercing . | . . . . . Highest Corruption 2 | . . . . 2 Average Corruption 1 | . . . . 1 Corruption Purged . | . . . . . Corruption Blocked . | . . . . . Effects 1 | . . . . 1 Matter Fused 1 | . . . . 1 Overload Shots . | . . . . . Overflow Damage . | . . . . . Projectiles . | . . . . . Explosions . | . . . . . Melee . | . . . . . Knockbacks . | . . . . . Impact . | . . . . . Kinetic . | . . . . . Secondary . | . . . . . Self-Inflicted Damage 24 | . . . . 24 Shots . | . . . . . Rammed 26 | . . . . 26 Targets Rammed 26 | . . . . 26 Kicked . | . . . . . Crushed . | . . . . . Highest Temperature 47 | . . . . 47 Average Temperature 17 | . . . . 17 Received Heat Transfer 549 | . . . . 549 Siege Activations . | . . . . . Martial Activations . | . . . . . Shielding Activations . | . . . . . Robots Disrupted . | . . . . . Combat Hostiles . | . . . . . Robots Corrupted . | . . . . . Combat Hostiles . | . . . . . Parts Fried . | . . . . . Impact Corruptions . | . . . . . Robots Melted 1 | . . . . 1 Combat Hostiles 1 | . . . . 1 Parts Melted . | . . . . . Heat Transferred 740 | . . . . 740 Parts Sabotaged . | . . . . . Parts Stolen . | . . . . . Parts Stripped . | . . . . . Power Chain Reactions . | . . . . . Alert | -11 -10 -9 -8 -8 ------- Run | Yrd Mat Mat Mat Gar Maximum Alert Level . | . . . . . Low Security (%) 100 | 100 100 100 100 100 Level 1 . | . . . . . Level 2 . | . . . . . Level 3 . | . . . . . Level 4 . | . . . . . Level 5 . | . . . . . High Security . | . . . . . Max Security . | . . . . . Peak Influence 80 | . . . . 80 Initial . | . . . . . Average 10 | . . . . 21 Influence Increases 160 | . . . . 160 Destroy 0b10 Robot/C 80 | . . . . 80 Destroy Leader 20 | . . . . 20 Lose Combat Pursuer 60 | . . . . 60 Influence Decreases 80 | . . . . 80 Lost Part 80 | . . . . 80 Squads Dispatched . | . . . . . Investigation . | . . . . . Extermination . | . . . . . Reinforcement . | . . . . . Assault . | . . . . . Garrison . | . . . . . Intercept . | . . . . . Searches Triggered . | . . . . . Construction Impeded . | . . . . . Haulers Reinforced . | . . . . . Active Scanning Responses . | . . . . . Cargo Convoy Interrupts . | . . . . . Stealth | -11 -10 -9 -8 -8 --------- Run | Yrd Mat Mat Mat Gar Distress Signals . | . . . . . Communications Jammed . | . . . . . Distress Signals . | . . . . . Times Spotted 33 | . . . . 33 Peak Tracking Total 11 | . . . . 11 Tactical Retreats 1 | . . . . 1 Traps | -11 -10 -9 -8 -8 ------- Run | Yrd Mat Mat Mat Gar Traps Triggered . | . . . . . Indirectly . | . . . . . Trap Hack Attempts . | . . . . . Triggered . | . . . . . Disarmed . | . . . . . Reprogrammed . | . . . . . Reused . | . . . . . Traps Extracted . | . . . . . Installed . | . . . . . Triggered . | . . . . . Machines | -11 -10 -9 -8 -8 ---------- Run | Yrd Mat Mat Mat Gar Machines Disabled . | . . . . . Max in Single Turn . | . . . . . Machines Repaired . | . . . . . Machines Dismantled . | . . . . . Machines Sabotaged . | . . . . . Overloaded Fab Kills . | . . . . . Hacking | -11 -10 -9 -8 -8 --------- Run | Yrd Mat Mat Mat Gar Machines Accessed 1 | . . . 1 . Terminals . | . . . . . Fabricators . | . . . . . Repair Stations . | . . . . . Recycling Units . | . . . . . Scanalyzers . | . . . . . Garrison Access 1 | . . . 1 . Total Hacks 2 | . . . 2 . Successful 1 | . . . 1 . Failed 1 | . . . 1 . Catastrophic . | . . . . . Database Lockouts . | . . . . . Manual . | . . . . . Terminals . | . . . . . Fabricators . | . . . . . Repair Stations . | . . . . . Recycling Units . | . . . . . Scanalyzers . | . . . . . Garrison Access 2 | . . . 2 . Terminal Hacks . | . . . . . Fabricator Hacks . | . . . . . Repair Station Hacks . | . . . . . Recycling Unit Hacks . | . . . . . Scanalyzer . | . . . . . Garrison Access Hacks 1 | . . . 1 . Unlock Access 1 | . . . 1 . Unauthorized Hacks . | . . . . . Terminals . | . . . . . Fabricators . | . . . . . Repair Stations . | . . . . . Recycling Units . | . . . . . Scanalyzers . | . . . . . Garrison Access . | . . . . . Data Cores Recovered . | . . . . . Used . | . . . . . Hacking Detections 1 | . . . 1 . Full Trace Events . | . . . . . Feedback Events . | . . . . . Feedback Blocked . | . . . . . Robot Schematics Acquired . | . . . . . Robots Built . | . . . . . Authchips . | . . . . . Time . | . . . . . Total Robot Build Rating . | . . . . . Part Schematics Acquired . | . . . . . Parts Built . | . . . . . Authchips . | . . . . . Time . | . . . . . Total Part Build Rating . | . . . . . Part Studies Acquired . | . . . . . Parts Repaired . | . . . . . Time . | . . . . . Parts Recycled . | . . . . . Recycled Matter . | . . . . . Retrieved Matter . | . . . . . Retrieved Components . | . . . . . Parts Scanalyzed . | . . . . . Part Schematics Acquired . | . . . . . Parts Damaged . | . . . . . Bothacking | -11 -10 -9 -8 -8 ------------ Run | Yrd Mat Mat Mat Gar Used RIF Installer 1 | . . . . 1 Robots Hacked 3 | . . . . 3 Non-combat . | . . . . . Combat 3 | . . . . 3 Robot Hacks Applied 3 | . . . . 3 find_shortcuts 3 | . . . . 3 Relay Couplers Released . | . . . . . Fabnet Peak Effective % . | . . . . . Robots Rewired . | . . . . . Allies Hacked . | . . . . . Hacks Repelled . | . . . . . Allies | -11 -10 -9 -8 -8 -------- Run | Yrd Mat Mat Mat Gar Total Allies . | . . . . . Largest Group . | . . . . . Highest-Rated Group . | . . . . . Highest-Rated Ally . | . . . . . Total Orders . | . . . . . Ally Attacks . | . . . . . Total Damage . | . . . . . Kills . | . . . . . Allies Corrupted . | . . . . . Allies Melted . | . . . . . Intel | -11 -10 -9 -8 -8 ------- Run | Yrd Mat Mat Mat Gar Active Infowar (turns) . | . . . . . Robot Analysis Total 4 | 1 . . . 3 Derelict Logs Recovered . | . . . . . Drone Launches . | . . . . . Drone Recoveries . | . . . . . Exploration | -11 -10 -9 -8 -8 ------------- Run | Yrd Mat Mat Mat Gar Turns Passed 695 | 35 141 125 66 328 Spaces Moved 564 | 37 141 126 66 194 Core 24 | 12 . . . 12 Treads . | . . . . . Legs 25 | . . . . 25 Wheels 514 | 25 141 126 66 156 Hover . | . . . . . Flight 1 | . . . . 1 Fastest Speed 37 | 50 100 100 100 37 Average Speed 99 | 83 100 100 100 100 Slowest Speed 120 | 100 100 100 100 120 Overloaded Moves . | . . . . . Propulsion Burnouts . | . . . . . Robots Hopped . | . . . . . Potential Cave-ins . | . . . . . Cave-ins Triggered . | . . . . . Exploration Rate (%) 20 | 3 40 26 12 22 Regions Visited 4 Branch Regions . Pre-discovered Areas . | . . . . . Known Exits Taken 1 | . . . 1 . Unknown Exits Taken 3 | 1 1 1 . . Scrap Searched . | . . . . . Spaces Dug . | . . . . . Terrain Destroyed . | . . . . . Melee . | . . . . . Projectile . | . . . . . AOE . | . . . . . Terrain Rammed . | . . . . . Walls Destroyed . | . . . . . Machines Disabled . | . . . . . Actions | -11 -10 -9 -8 -8 --------- Run | Yrd Mat Mat Mat Gar Total 654 | 40 141 125 66 282 Wait 14 | . 1 . 1 12 Move 560 | 36 140 125 65 194 Hop . | . . . . . Pick Up 4 | 4 . . . . Fast Attach . | . . . . . Attach . | . . . . . Detach . | . . . . . Swap . | . . . . . Drop . | . . . . . Fire 50 | . . . . 50 Melee . | . . . . . Ram 26 | . . . . 26 Kick . | . . . . . Crush . | . . . . . Escape Stasis . | . . . . . Rewire . | . . . . . Trap . | . . . . . Miscellaneous . | . . . . . Route ------- -11/Scrapyard -10/Materials (discovered 2 exits: [*Mat x2]) -9/Materials -8/Materials -8/Garrison History --------- Turn | Location | Event 3 | -11/Scrapyard | Discovered new exit (range 15) 36 | -11/Scrapyard | Entered Materials 85 | -10/Materials | Discovered new exit (range 12) 163 | -10/Materials | Discovered new exit (range 13) 177 | -10/Materials | Entered another Materials area 283 | -9/Materials | Discovered new exit (range 13) 302 | -9/Materials | Entered another Materials area 366 | -8/Materials | Identified exit to Garrison 368 | -8/Materials | Entered Garrison 384 | -8/Garrison | Triggered checkpoint 415 | -8/Garrison | Installed Relay Interface Framework 446 | -8/Garrison | Triggered checkpoint 454 | -8/Garrison | Triggered checkpoint 466 | -8/Garrison | Triggered checkpoint 620 | -8/Garrison | Core integrity fell below 50% 662 | -8/Garrison | Core integrity fell below 20% 678 | -8/Garrison | Lost 8 parts (2p4n1u1w) 696 | -8/Garrison | Destroyed by Y-45 Defender with Heavy Assault Rifle Last Messages --------------- 00628_ Acquired 14 matter. 00629_ Acquired 1 matter. 00635_ Flight Unit destroyed. 00636_ Acquired 1 matter. 00639_ Flight Unit destroyed. 00641_ Acquired 1 matter. 00644_ System corrupted: Matter fused (-8). 00644_ Acquired 8 matter. 00645_ Acquired 1 matter. 00647_ Lgt. Ion Engine destroyed. 00649_ Acquired 1 matter. 00657_ G-50 Soldier destroyed. 00658_ Acquired 1 matter. 00681_ Lgt. Assault Rifle destroyed. 00681_ Lost control of S-10 Pest. 00682_ Slammed into G-47 Trooper. 00683_ Took control of G-47 Trooper. 00683_ Extracted analysis data for G-47 Trooper. 00686_ G-47 Trooper suffers critical hit (Burn). 00694_ G-47 Trooper critical meltdown. Map ----- +----------------------------------------------------+ | ????????????????????????????????????????? | | ????????????????????????????????????????? | | ????????????????????????????????????????? | | ????????????????????????????????????????? | | ????????????????????????????????????????? | | ????????????????????????????????????????? | | ????????????????????????????????????????? | | ????????????????????????????????????????? | | ????????????????????????????????????????? | | ????????????????????????????????????????? | | ????????????????????????????????????????? | | ????????????????????????????????????????? | | ????????????????????????????????????????? | | ????????????????????????????????????????? | | ????????????????????????????????????????? | | ????????????????????????????????????????? | | ????????????????????????????????????????? | | ????????????????????????????????????????? | | ????????????????????????????############# | | ????????????????????????????# | | ???????????????#####????????# | | ??????########?#"""#????????# | | ??????#""""""#?#"%"#????????# #### #### | | ??????#" "#?#"%"#????????# #??# #??? | | ??????#" "#?#"%=#????????# #??# #??? | | ??????#### ###?#g=%#????????# #??# #??? | | ?????????# #???##Y##????????# #??# #??? | | ?????????# ######g########### ####^#??? | | ?????????# %[g!% #??? | | ?????????########=########### ######??? | | ????????????????#[#?????????# #???????? | | ????????????????# #?????????# #???????? | | ????????????????# #?????????# #???????? | | ??????????????### #?????????# ###?????? | | ??????!!!?????# #?????????# #?????? | | ??????????????# #?????????# #?????? | | ??????!!!?????# #?????????# #?????? | | ??????????????### #?????????# ###?????? | | ????????????????# #?????????# #???????? | | ????????????????# #?????????# #???????? | | ????????????????# #?????????# #???????? | | ??????????????### #????????## #?????!!! | | ?????#!!!###### #????????# #???????? | | ?????# + #????????# #???????? | | ??????!!!?##### #????????## #?????!!! | | ??????????????### #?????????# #???????? | | ????????????????# #?????????# #???????? | | ????????????????# ##????????# #???????? | | ????????????????# T#????????# #???????? | | ??????????????### ##????????# #???????? | +----------------------------------------------------+ Best States ------------- Heat Dissipation 42 Energy Generation 23 Energy Capacity 110 Matter Stores 100 Matter Capacity 100 Sight Range 16 Terrain Scan Density 10 Evasion (%) 55 Item Schematics ----------------- None Robot Schematics ------------------ None Fabricated ------------ Nothing Repaired ---------- Nothing Studied --------- None Alien Tech Used ----------------- None Achievements -------------- Join The Dark Side Challenges ------------ None Polymind | -11 -10 -9 -8 -8 ---------- Run | Yrd Mat Mat Mat Gar Hosts 4 | 1 . . . 3 Combat Hostiles 3 | . . . . 3 Allies . | . . . . . Unique Host Classes 3 | 1 . . . 2 Average Host Suspicion 55 | 4 49 27 14 81 Unsuspicious Activity 2 | 2 . . . . Returns to Shadow . | . . . . . Fuzzy Dispatches . | . . . . . Protomatter Created 40 | . . . . 40 Used 86 | 5 . . . 81 Decayed . | . . . . . Highest Spend 45 | 5 . . . 45 Top 5 Hosts by Kills: G-50 Soldier (-8/Garrison: 2) S-10 Pest (-8/Garrison: 1) G-47 Trooper (-8/Garrison: 1) Game ------ Seed DisassembledBlinkDeflector Manual? 0 Play Time 00:06:47 Cumulative 142.7 hours Start 2026.07.30 @ 20:20:30 End 2026.07.30 @ 20:26:51 Sessions 1 Manual Loads 0 Difficulty Rogue Special Mode Winter2022/Polymind Game No. 128 Rogue 127 Adventurer 0 Explorer 1 Win Type - Total 8 Types 5/0/1/1/0/0/0/1/0/0 Lore% 75 Gallery% 65 Achievement% 46 Wizard Run 0 Options --------- Layout 1 ASCII 0 Keyboard 0 Movement Arrows Keybinds 0 Fullscreen 1 Font 24/Smallcaps Map View 50x35 Zoom Use 0% Tactical HUD 1 Map Filters NONE Filters NONE Steam 1 RUN: e9ab785b-2902-46a1-a9e2-6f439adde6d2